fUSD/lending_fUSD_20250314
["ID","MTS","AMOUNT","RATE_DAILY","PERIOD"]
[356133331,1741936952558,-339.75466472,0.00022109,3]
[356133332,1741936952567,-311.64533528,0.00022109,3]
[356133333,1741936952578,-196.66744082,0.00022109,3]
[356133334,1741936952588,-303.33255918,0.00022109,3]
[356133335,1741936952600,-500.0,0.00022109,3]
[356133336,1741936952611,-234.44744082,0.00022109,3]
[356133337,1741936952622,-265.55255918,0.00022109,3]
[356133338,1741936952696,-500.0,0.00021917,3]
[356133339,1741936952707,-500.0,0.00021945,3]
[356133340,1741936952719,-651.11,0.00022109,3]
[356133341,1741936952732,-168.13744082,0.00022109,3]
[356133342,1741936952742,-331.86255918,0.00022109,3]
[356133343,1741936952754,-168.13744082,0.00022109,3]
[356133344,1741936952766,-331.86255918,0.00022109,3]
[356133345,1741936952779,-168.13744082,0.00022109,3]
[356133346,1741936952788,-713.92,0.00022109,3]
[356133347,1741936952798,-478.77255918,0.00022109,3]
[356133348,1741936952810,-118.45475603,0.00022109,3]
[356133349,1741936952819,-381.54524397,0.00022109,3]
[356133350,1741936952831,-388.47475603,0.00022109,3]
[356133351,1741936952840,-111.52524397,0.00022109,3]
[356133352,1741936952852,-388.47475603,0.00022109,3]
[356133353,1741936952862,-111.52524397,0.00022109,3]
[356133354,1741936952874,-388.47475603,0.00022109,3]
[356133355,1741936952883,-111.52524397,0.00022109,3]
[356133356,1741936952894,-388.47475603,0.00022109,3]
[356133357,1741936952903,-111.52524397,0.00022109,3]
[356133358,1741936952914,-151.0,0.00022109,3]
[356133359,1741936952926,-655.53,0.00022109,3]
[356133360,1741936952937,-95.71475603,0.00022109,3]
[356133361,1741936952947,-500.0,0.00022109,3]
[356133362,1741936952956,-2.58524397,0.00022109,3]
[356133363,1741936952967,-497.41475603,0.00022109,3]
[356133364,1741936952977,-500.0,0.00022109,3]
[356133365,1741936952986,-141.56524397,0.00022109,3]
[356133366,1741936952998,-358.43475603,0.00022109,3]
[356133367,1741936953007,-141.56524397,0.00022109,3]
[356133368,1741936953024,-500.0,0.00022109,3]
[356133369,1741936953036,-105.42475603,0.00022109,3]
[356133370,1741936953046,-500.0,0.00022109,3]
[356133371,1741936953056,-34.67524397,0.00022109,3]
[356133372,1741936953068,-465.32475603,0.00022109,3]
[356133373,1741936953078,-662.9,0.00022109,3]
[356133374,1741936953087,-104.51524397,0.00022109,3]
[356133375,1741936953100,-500.0,0.00022109,3]
[356133376,1741936953111,-0.17620782,0.00022109,3]
[356133377,1741936953122,-499.82379218,0.00022109,3]
[356133378,1741936953134,-0.17620782,0.00022109,3]
[356133379,1741936953144,-499.82379218,0.00022109,3]
[356133380,1741936953156,-0.17620782,0.00022109,3]
[356133381,1741936953166,-499.82379218,0.00022109,3]
[356133382,1741936953177,-57.77620782,0.00022109,3]
[356133383,1741936953187,-442.22379218,0.00022109,3]
[356133384,1741936953198,-474.03620782,0.00022109,3]
[356133385,1741936953208,-25.96379218,0.00022109,3]
[356133386,1741936953223,-500.0,0.00021972,3]
[356133387,1741936953235,-600.89,0.00022109,3]
[356133388,1741936953246,-24.54620782,0.00022109,3]
[356133389,1741936953256,-475.45379218,0.00022109,3]
[356133390,1741936953268,-24.54620782,0.00022109,3]
[356133391,1741936953278,-297.83759403,0.00022109,3]
[356133392,1741936953289,-177.61619815,0.00022109,3]
[356133393,1741936953300,-322.38380185,0.00022109,3]
[356133394,1741936953311,-177.61619815,0.00022109,3]
[356133395,1741936953323,-322.38380185,0.00022109,3]
[356133396,1741936953333,-177.61619815,0.00022109,3]
[356133397,1741936953344,-473.49380185,0.00022109,3]
[356133398,1741936953354,-26.50619815,0.00022109,3]
[356133399,1741936953366,-473.49380185,0.00022109,3]
[356133400,1741936953376,-468.86619815,0.00022109,3]
[356133401,1741936953388,-500.0,0.00022109,3]
[356133402,1741936953400,-391.96380185,0.00022109,3]
[356133403,1741936953410,-108.03619815,0.00022109,3]
[356133404,1741936953421,-485.42886185,0.00022109,3]
[356133405,1741936953431,-500.0,0.00022109,3]
[356133406,1741936953441,-16.94113815,0.00022109,3]
[356133407,1741936953453,-483.05886185,0.00022109,3]
[356133408,1741936953463,-58.14488963,0.00022109,3]
[356133409,1741936953476,-441.85511037,0.00022109,3]
[356133410,1741936953486,-58.14488963,0.00022109,3]
[356133411,1741936953497,-441.85511037,0.00022109,3]
[356133412,1741936953507,-194.85488963,0.00022109,3]
[356133413,1741936953520,-460.67511037,0.00022109,3]
[356133414,1741936953529,-66.42488963,0.00022109,3]
[356133415,1741936953541,-500.0,0.00022109,3]
[356133416,1741936953552,-31.87511037,0.00022109,3]
[356133417,1741936953562,-476.03488963,0.00022109,3]
[356133418,1741936953577,-558.7,0.00021999,3]
[356133419,1741936953587,-563.23,0.00022109,3]
[356133420,1741936953599,-99.71511037,0.00022109,3]
[356133421,1741936953609,-500.0,0.00022109,3]
[356133422,1741936953619,-138.46488963,0.00022109,3]
[356133423,1741936953631,-338.77556578,0.00022109,3]
[356133424,1741936953642,-162.85954459,0.00022109,3]
[356133425,1741936953652,-500.0,0.00022109,3]
[356133426,1741936953662,-419.41045541,0.00022109,3]
[356133427,1741936953674,-501.07,0.00022109,3]
[356133428,1741936953690,-312.25954459,0.00022109,3]
[356133429,1741936953700,-208.1176603,0.00022109,3]
[356133430,1741936953711,-291.8823397,0.00022109,3]
[356133431,1741936953720,-208.1176603,0.00022109,3]
[356133432,1741936953732,-291.8823397,0.00022109,3]
[356133433,1741936953741,-500.0,0.00022109,3]
[356133434,1741936953751,-0.6876603,0.00022109,3]
[356133435,1741936953763,-499.3123397,0.00022109,3]
[356133436,1741936953772,-147.3676603,0.00022109,3]
[356133437,1741936953783,-352.6323397,0.00022109,3]
[356133438,1741936953794,-147.3676603,0.00022109,3]
[356133439,1741936953806,-352.6323397,0.00022109,3]
[356133440,1741936953815,-600.89,0.00022109,3]
[356133441,1741936953825,-284.4176603,0.00022109,3]
[356133442,1741936953837,-215.5823397,0.00022109,3]
[356133443,1741936953846,-285.4776603,0.00022109,3]
[356133444,1741936953862,-500.0,0.00021944,3]
[356133445,1741936953872,-214.5223397,0.00022109,3]
[356133446,1741936953881,-95.0376603,0.00022109,3]
[356133447,1741936953892,-404.9623397,0.00022109,3]
[356133448,1741936953902,-500.0,0.00022109,3]
[356133449,1741936953911,-500.0,0.00022109,3]
[356133450,1741936953921,-35.1676603,0.00022109,3]
[356133451,1741936953932,-500.0,0.00022109,3]
[356133452,1741936953944,-407.1923397,0.00022109,3]
[356133453,1741936953954,-105.7276603,0.00022109,3]
[356133454,1741936953965,-394.2723397,0.00022109,3]
[356133455,1741936953975,-179.8176603,0.00022109,3]
[356133456,1741936953987,-320.1823397,0.00022109,3]
[356133457,1741936953997,-179.8176603,0.00022109,3]
[356133458,1741936954009,-534.47,0.00022109,3]
[356133459,1741936954021,-288.0823397,0.00022109,3]
[356133460,1741936954031,-211.9176603,0.00022109,3]
[356133461,1741936954043,-288.0823397,0.00022109,3]
[356133462,1741936954053,-211.9176603,0.00022109,3]
[356133463,1741936954065,-424.7923397,0.00022109,3]
[356133464,1741936954074,-75.2076603,0.00022109,3]
[356133465,1741936954086,-173.534334,0.00022109,3]
[356133466,1741936954099,-259.1680057,0.00022109,3]
[356133467,1741936954109,-240.8319943,0.00022109,3]
[356133468,1741936954121,-259.1680057,0.00022109,3]
[356133469,1741936954131,-240.8319943,0.00022109,3]
[356133470,1741936954143,-173.534334,0.00022109,3]
[356133471,1741936954155,-323.8136717,0.00022109,3]
[356133472,1741936954165,-176.1863283,0.00022109,3]
[356133473,1741936954180,-500.0,0.00021917,3]
[356133474,1741936954192,-500.0,0.00022109,3]
[356133475,1741936954203,-406.0836717,0.00022109,3]
[356133476,1741936954213,-93.9163283,0.00022109,3]
[356133477,1741936954233,-407.1536717,0.00022109,3]
[356133478,1741936954243,-92.8463283,0.00022109,3]
[356133479,1741936954417,-410.44716712,0.00022109,3]
[356133480,1741936954428,-89.55283288,0.00022109,3]
[356133481,1741936954440,-500.0,0.00022109,3]
[356133482,1741936954452,-203.01716712,0.00022109,3]
[356133483,1741936954462,-296.98283288,0.00022109,3]
[356133484,1741936954473,-349.69716712,0.00022109,3]
[356133485,1741936954484,-150.30283288,0.00022109,3]
[356133486,1741936954496,-1070.2,0.00022109,3]
[356133487,1741936954508,-17.43716712,0.00022109,3]
[356133488,1741936954517,-482.56283288,0.00022109,3]
[356133489,1741936954529,-957.56716712,0.00022109,3]
[356133490,1741936954539,-500.0,0.00022109,3]
[356133491,1741936954550,-512.92,0.00022109,3]
[356133492,1741936954560,-64.84283288,0.00022109,3]
[356133493,1741936954572,-509.24716712,0.00022109,3]
[356133494,1741936954582,-500.0,0.00022109,3]
[356133495,1741936954592,-54.60283288,0.00022109,3]
[356133496,1741936954605,-479.86716712,0.00022109,3]
[356133497,1741936954615,-500.0,0.00022109,3]
[356133498,1741936954626,-127.05283288,0.00022109,3]
[356133499,1741936954638,-372.94716712,0.00022109,3]
[356133500,1741936954648,-127.05283288,0.00022109,7]
[356133501,1741936954660,-46.48150112,0.00022109,7]
[356133502,1741936954670,-500.0,0.00022109,3]
[356133503,1741936954681,-241.98369514,0.00022109,3]
[356133504,1741936954694,-169.21480374,0.00022109,3]
[356133505,1741936954706,-330.78519626,0.00022109,3]
[356133506,1741936954715,-169.21480374,0.00022109,7]
[356133507,1741936954728,-4.31953026,0.00022109,7]
[356133508,1741936954738,-495.68046974,0.00022109,3]
[356133509,1741936954750,-4.31953026,0.00022109,3]
[356133510,1741936954760,-500.0,0.00022109,3]
[356133511,1741936954771,-4.32865814,0.00022109,3]
[356133512,1741936954784,-495.67134186,0.00022109,3]
[356133513,1741936954794,-4.32865814,0.00022109,3]
[356133514,1741936954807,-495.67134186,0.00022109,3]
[356133515,1741936954816,-4.32865814,0.00022109,3]
[356133516,1741936954862,-495.67134186,0.00022109,3]
[356133517,1741936954872,-253.86865814,0.00022109,3]
[356133518,1741936954884,-246.13134186,0.00022109,3]
[356133519,1741936954894,-253.86865814,0.00022109,3]
[356133520,1741936954906,-246.13134186,0.00022109,3]
[356133521,1741936954915,-253.86865814,0.00022109,3]
[356133522,1741936954935,-500.0,0.00022109,3]
[356133523,1741936954948,-316.33134186,0.00022109,3]
[356133524,1741936954957,-500.0,0.00022109,3]
[356133525,1741936954966,-84.28865814,0.00022109,3]
[356133526,1741936954978,-1183.4,0.00022109,3]
[356133527,1741936954991,-500.0,0.00022109,3]
[356133528,1741936955003,-267.64134186,0.00022109,3]
[356133529,1741936955013,-87.25600614,0.00022109,3]
[356133530,1741936955025,-1019.66399386,0.00022109,3]
[356133531,1741936955035,-500.0,0.00022109,3]
[356133532,1741936955044,-943.39600614,0.00022109,3]
[356133533,1741936955056,-14.28399386,0.00022109,3]
[356133534,1741936955066,-340.61335414,0.00022109,3]
[356133535,1741936955078,-159.38664586,0.00022109,3]
[356133536,1741936955089,-340.61335414,0.00022109,3]
[356133537,1741936955101,-159.38664586,0.00022109,3]
[356133538,1741936955111,-340.61335414,0.00022109,3]
[356133539,1741936955123,-159.38664586,0.00022109,3]
[356133540,1741936955133,-500.0,0.00022109,3]
[356133541,1741936955142,-248.28335414,0.00022109,3]
[356133542,1741936955154,-501.25664586,0.00022109,3]
[356133543,1741936955164,-500.0,0.00022109,3]
[356133544,1741936955173,-162.95187523,0.00022109,3]
[356133545,1741936955183,-500.0,0.00022109,3]
[356133546,1741936955193,-87.33147891,0.00022109,3]
[356133547,1741936955205,-659.53,0.00022109,3]
[356133548,1741936955217,-153.75852109,0.00022109,3]
[356133549,1741936955226,-346.24147891,0.00022109,3]
[356133550,1741936955239,-500.0,0.00022109,3]
[356133551,1741936955250,-337.15852109,0.00022109,3]
[356133552,1741936955260,-162.84147891,0.00022109,3]
[356133553,1741936955272,-337.15852109,0.00022109,3]
[356133554,1741936955281,-162.84147891,0.00022109,7]
[356133555,1741936955293,-192.05586909,0.00022109,7]
[356133556,1741936955303,-354.897348,0.00022109,7]
[356133557,1741936955313,-91.14678291,0.00022109,3]
[356133558,1741936955325,-463.5841109,0.00022109,3]
[356133559,1741936955335,-112.4958891,0.00022109,3]
[356133560,1741936955346,-387.5041109,0.00022109,3]
[356133561,1741936955356,-112.4958891,0.00022109,3]
[356133562,1741936955368,-500.0,0.00022109,3]
[356133563,1741936955380,-295.1741109,0.00022109,3]
[356133564,1741936955389,-204.8258891,0.00022109,3]
[356133565,1741936955400,-605.51,0.00022109,3]
[356133566,1741936955412,-500.0,0.00022109,3]
[356133567,1741936955423,-441.2041109,0.00022109,3]
[356133568,1741936955432,-58.7958891,0.00022109,3]
[356133569,1741936955444,-500.0,0.00022109,3]
[356133570,1741936955456,-100.7341109,0.00022109,3]
[356133571,1741936955466,-399.2658891,0.00022109,3]
[356133572,1741936955478,-100.7341109,0.00022109,3]
[356133573,1741936955487,-399.2658891,0.00022109,3]
[356133574,1741936955499,-100.7341109,0.00022109,3]
[356133575,1741936955508,-500.0,0.00022109,3]
[356133576,1741936955517,-26.1452241,0.00022109,3]
[356133577,1741936955529,-500.0,0.00022109,3]
[356133578,1741936955541,-111.9547759,0.00022109,3]
[356133579,1741936955550,-514.9245591,0.00022109,3]
[356133580,1741936955562,-61.1554409,0.00022109,3]
[356133581,1741936955571,-438.8445591,0.00022109,3]
[356133582,1741936955583,-61.1554409,0.00022109,3]
[356133583,1741936955593,-500.0,0.00022109,3]
[356133584,1741936955602,-605.51,0.00022109,3]
[356133585,1741936955612,-103.8545591,0.00022109,3]
[356133586,1741936955624,-396.1454409,0.00022109,3]
[356133587,1741936955635,-103.8545591,0.00022109,3]
[356133588,1741936955646,-151.0,0.00022109,3]
[356133589,1741936955658,-151.0,0.00022109,3]
[356133590,1741936955670,-94.1454409,0.00022109,3]
[356133591,1741936955680,-405.8545591,0.00022109,3]
[356133592,1741936955696,-94.1454409,0.00022109,3]
[356133593,1741936955706,-391.39414075,0.00022109,7]
[356133594,1741936955718,-235.48519425,0.00022109,7]
[356133595,1741936955728,-264.51480575,0.00022109,3]
[356133596,1741936955740,-338.6735064,0.00022109,3]
[356133597,1741936955749,-161.3264936,0.00022109,3]
[356133598,1741936955762,-338.6735064,0.00022109,3]
[356133599,1741936955772,-486.2464936,0.00022109,7]
[356133600,1741936955783,-140.6328414,0.00022109,7]
[356133601,1741936955792,-422.8371586,0.00022109,3]
[356133602,1741936955804,-77.1628414,0.00022109,3]
[356133603,1741936955813,-422.8371586,0.00022109,3]
[356133604,1741936955825,-500.0,0.00022109,3]
[356133605,1741936955837,-347.6828414,0.00022109,3]
[356133606,1741936955846,-152.3171586,0.00022109,2]
[356133607,1741936955858,-347.6828414,0.00022109,2]
[356133608,1741936955867,-152.3171586,0.00022109,3]
[356133609,1741936955878,-682.16,0.00022109,3]
[356133610,1741936955890,-262.9128414,0.00022109,3]
[356133611,1741936955899,-237.0871586,0.00022136,3]
[356133612,1741936955911,-262.9128414,0.00022136,3]
[356133613,1741936955920,-237.0871586,0.00022136,3]
[356133614,1741936955931,-500.0,0.00022136,3]
[356133615,1741936955947,-87.8328414,0.00022136,3]
[356133616,1741936955956,-423.0971586,0.00022136,3]
[356133617,1741936955995,-140.3728414,0.00022136,3]
[356133618,1741936956004,-340.08366678,0.00022136,3]
[356133619,1741936956014,-19.54349182,0.00022136,3]
[356133620,1741936956025,-480.45650818,0.00022136,3]
[356133621,1741936956035,-19.54349182,0.00022136,3]
[356133622,1741936956046,-480.45650818,0.00022136,3]
[356133623,1741936956055,-135.48349182,0.00022136,3]
[356133624,1741936956067,-500.0,0.00022136,3]
[356133625,1741936956078,-46.67650818,0.00022136,3]
[356133626,1741936956087,-453.32349182,0.00022136,3]
[356133627,1741936956098,-46.67650818,0.00022136,3]
[356133628,1741936956107,-453.32349182,0.00022136,3]
[356133629,1741936956118,-46.67650818,0.00022136,3]
[356133630,1741936956127,-493.69349182,0.00022136,3]
[356133631,1741936956142,-398.5916693,0.00021366,2]
[356133632,1741936956151,-17.23650818,0.00022136,3]
[356133633,1741936956160,-84.17182252,0.00022136,3]
[356133634,1741936956171,-415.82817748,0.00022136,3]
[356133635,1741936956180,-84.17182252,0.00022136,3]
[356133636,1741936956191,-415.82817748,0.00022136,3]
[356133637,1741936956200,-84.17182252,0.00022136,3]
[356133638,1741936956215,-509.93,0.00022136,3]
[356133639,1741936956226,-21.83817748,0.00022136,3]
[356133640,1741936956235,-500.0,0.00022136,3]
[356133641,1741936956244,-74.82182252,0.00022136,3]
[356133642,1741936956255,-465.54817748,0.00022136,3]
[356133643,1741936956263,-34.45182252,0.00022136,3]
[356133644,1741936956278,-465.54817748,0.00022136,3]
[356133645,1741936956287,-276.43182252,0.00022136,3]
[356133646,1741936956298,-233.49817748,0.00022136,3]
[356133647,1741936956307,-389.66261853,0.00022136,3]
[356133648,1741936956318,-206.99738147,0.00022136,3]
[356133649,1741936956327,-293.00261853,0.00022136,3]
[356133650,1741936956338,-206.99738147,0.00022136,3]
[356133651,1741936956347,-500.0,0.00022136,3]
[356133652,1741936956356,-513.36261853,0.00022136,3]
[356133653,1741936956370,-53.18738147,0.00022136,3]
[356133654,1741936956379,-446.81261853,0.00022136,3]
[356133655,1741936956390,-53.18738147,0.00022136,3]
[356133656,1741936956399,-446.81261853,0.00022136,3]
[356133657,1741936956455,-53.18738147,0.00022136,3]
[356133658,1741936956465,-500.0,0.00022136,3]
[356133659,1741936956475,-13.36261853,0.00022136,3]
[356133660,1741936956494,-486.63738147,0.00022136,3]
[356133661,1741936956503,-13.36261853,0.00022136,3]
[356133662,1741936956514,-500.0,0.00022136,3]
[356133663,1741936956526,-101.47738147,0.00022136,3]
[356133664,1741936956535,-398.52261853,0.00022136,3]
[356133665,1741936956547,-101.47738147,0.00022136,3]
[356133666,1741936956557,-398.52261853,0.00022136,3]
[356133667,1741936956568,-160.10738147,0.00022136,3]
[356133668,1741936956577,-454.73261853,0.00022136,3]
[356133669,1741936956727,-128.87738147,0.00022136,3]
[356133670,1741936956737,-317.50128944,0.00022136,3]
[356133671,1741936956748,-182.49871056,0.00022136,3]
[356133672,1741936956757,-317.50128944,0.00022136,3]
[356133673,1741936956769,-182.49871056,0.00022136,3]
[356133674,1741936956780,-376.13128944,0.00022136,3]
[356133675,1741936956791,-386.07119323,0.00022136,3]
[356133676,1741936956807,-105.43751733,0.00022136,3]
[356133677,1741936956816,-478.17248267,0.00022136,3]
[356133678,1741936956829,-21.82751733,0.00022136,3]
[356133679,1741936956839,-478.17248267,0.00022136,3]
[356133680,1741936956850,-21.82751733,0.00022136,3]
[356133681,1741936956859,-478.17248267,0.00022136,3]
[356133682,1741936956871,-21.82751733,0.00022136,3]
[356133683,1741936956880,-845.81248267,0.00022136,3]
[356133684,1741936956891,-500.0,0.00022136,3]
[356133685,1741936956906,-500.0,0.00021917,3]
[356133686,1741936956918,-202.37751733,0.00022136,3]
[356133687,1741936956927,-297.62248267,0.00022136,3]
[356133688,1741936956938,-1056.39751733,0.00022136,3]
[356133689,1741936956947,-491.79248267,0.00022136,3]
[356133690,1741936956959,-13.79663924,0.00022136,3]
[356133691,1741936956969,-500.0,0.00022136,3]
[356133692,1741936956978,-46.03222485,0.00022136,3]
[356133693,1741936956990,-540.5805283,0.00022136,3]
[356133694,1741936956999,-500.0,0.00022136,3]
[356133695,1741936957008,-313.4394717,0.00022136,3]
[356133696,1741936957020,-186.5605283,0.00022136,3]
[356133697,1741936957029,-313.4394717,0.00022136,3]
[356133698,1741936957041,-186.5605283,0.00022136,3]
[356133699,1741936957050,-313.4394717,0.00022136,3]
[356133700,1741936957062,-186.5605283,0.00022136,3]
[356133701,1741936957071,-313.4394717,0.00022136,3]
[356133702,1741936957086,-500.0,0.00021917,3]
[356133703,1741936957097,-65.41,0.00021917,3]
[356133704,1741936957107,-215.9805283,0.00022136,3]
[356133705,1741936957116,-218.6094717,0.00022136,3]
[356133706,1741936957128,-356.7405283,0.00022136,3]
[356133707,1741936957139,-143.2594717,0.00022136,3]
[356133708,1741936957150,-356.7405283,0.00022136,3]
[356133709,1741936957160,-143.2594717,0.00022136,3]
[356133710,1741936957172,-356.7405283,0.00022136,3]
[356133711,1741936957181,-143.2594717,0.00022136,3]
[356133712,1741936957200,-500.0,0.00021998,2]
[356133713,1741936957210,-29.42,0.00022136,3]
[356133714,1741936957221,-335.00749824,0.00022136,3]
[356133715,1741936957231,-164.99250176,0.00022136,3]
[356133716,1741936957246,-220.19549822,0.00021998,2]
[356133717,1741936957256,-335.00749824,0.00022136,3]
[356133718,1741936957266,-20.14700354,0.00022136,3]
[356133719,1741936957283,-498.50698577,0.00022136,3]
[356133720,1741936957293,-1.49301423,0.00022136,3]
[356133721,1741936957312,-500.0,0.00021944,3]
[356133722,1741936957323,-6.20489647,0.00021944,3]
[356133723,1741936957332,-493.79510353,0.00022136,3]
[356133724,1741936957348,-101.83188224,0.00022136,3]
[356133725,1741936957358,-398.16811776,0.00022136,3]
[356133726,1741936957370,-250.28188224,0.00022136,3]
[356133727,1741936957380,-249.71811776,0.00022136,3]
[356133728,1741936957395,-378.02188224,0.00022136,3]
[356133729,1741936957404,-121.97811776,0.00022136,3]
[356133730,1741936957415,-378.02188224,0.00022136,3]
[356133731,1741936957425,-219.09811776,0.00022136,3]
[356133732,1741936957437,-376.21443517,0.00022136,3]
[356133733,1741936957447,-272.23556483,0.00022136,3]
[356133734,1741936957459,-419.46443517,0.00022136,3]
[356133735,1741936957469,-80.53556483,0.00022136,3]
[356133736,1741936957481,-419.46443517,0.00022136,3]
[356133737,1741936957491,-208.27556483,0.00022136,3]
[356133738,1741936957502,-291.72443517,0.00022136,3]
[356133739,1741936957513,-208.27556483,0.00022136,3]
[356133740,1741936957525,-244.57625148,0.00022136,3]
[356133741,1741936957535,-255.42374852,0.00022136,3]
[356133742,1741936957548,-244.57625148,0.00022136,3]
[356133743,1741936957556,-447.12374852,0.00022136,3]
[356133744,1741936957568,-52.87625148,0.00022136,3]
[356133745,1741936957579,-447.12374852,0.00022136,3]
[356133746,1741936957591,-245.67625148,0.00022136,3]
[356133747,1741936957600,-254.32374852,0.00022136,3]
[356133748,1741936957611,-500.0,0.00022136,3]
[356133749,1741936957623,-66.06625148,0.00022136,3]
[356133750,1741936957632,-433.93374852,0.00022136,3]
[356133751,1741936957824,-66.06625148,0.00022136,3]
[356133752,1741936957834,-433.93374852,0.00022136,3]
[356133753,1741936957845,-66.06625148,0.00022136,3]
[356133754,1741936957855,-170.27712132,0.00022136,3]
[356133755,1741936957864,-263.6566272,0.00022136,3]
[356133756,1741936957876,-236.3433728,0.00022136,3]
[356133757,1741936957885,-263.6566272,0.00022136,3]
[356133758,1741936957897,-500.0,0.00022136,3]
[356133759,1741936957909,-67.9133728,0.00022136,3]
[356133760,1741936957918,-432.0866272,0.00022136,3]
[356133761,1741936957930,-67.9133728,0.00022136,3]
[356133762,1741936957940,-624.8866272,0.00022136,3]
[356133763,1741936957952,-820.39,0.00022136,3]
[356133764,1741936957963,-500.0,0.00022136,3]
[356133765,1741936957974,-85.0233728,0.00022136,3]
[356133766,1741936957985,-414.9766272,0.00022136,3]
[356133767,1741936957996,-500.0,0.00022136,3]
[356133768,1741936958008,-500.0,0.00022136,3]
[356133769,1741936958020,-500.0,0.00022136,3]
[356133770,1741936958031,-831.57,0.00022136,3]
[356133771,1741936958043,-500.0,0.00022136,3]
[356133772,1741936958055,-392.9133728,0.00022136,3]
[356133773,1741936958064,-107.0866272,0.00022136,3]
[356133774,1741936958075,-1739.5433728,0.00022136,3]
[356133775,1741936958085,-290.7566272,0.00022136,3]
[356133776,1741936958096,-190.0960308,0.00022136,3]
[356133777,1741936958106,-309.9039692,0.00022136,3]
[356133778,1741936958118,-915.0660308,0.00022136,3]
[356133779,1741936958127,-1644.43,0.00022136,3]
[356133780,1741936958136,-875.7,0.00022136,3]
[356133781,1741936958146,-204.2639692,0.00022136,3]
[356133782,1741936958157,-1289.4560308,0.00022136,3]
[356133783,1741936958167,-557.1739692,0.00022136,3]
[356133784,1741936958179,-59.6260308,0.00022136,3]
[356133785,1741936958188,-421.2266272,0.00022136,3]
[356133786,1741936958200,-78.7733728,0.00022136,3]
[356133787,1741936958210,-500.0,0.00022136,3]
[356133788,1741936958220,-534.7,0.00022136,3]
[356133789,1741936958230,-111.4966272,0.00022136,3]
[356133790,1741936958242,-416.6833728,0.00022136,3]
[356133791,1741936958252,-500.0,0.00022136,3]
[356133792,1741936958262,-500.0,0.00022136,3]
[356133793,1741936958272,-227.7466272,0.00022136,3]
[356133794,1741936958284,-272.2533728,0.00022136,3]
[356133795,1741936958294,-500.0,0.00022136,3]
[356133796,1741936958304,-103.4466272,0.00022136,3]
[356133797,1741936958316,-396.5533728,0.00022136,3]
[356133798,1741936958325,-500.0,0.00022136,3]
[356133799,1741936958335,-597.1666272,0.00022136,3]
[356133800,1741936958347,-616.8,0.00022136,3]
[356133801,1741936958362,-500.0,0.00021984,2]
[356133802,1741936958374,-500.0,0.00021984,2]
[356133803,1741936958385,-500.0,0.00021984,2]
[356133804,1741936958396,-534.7,0.00021984,2]
[356133805,1741936958408,-528.18,0.00021984,2]
[356133806,1741936958419,-1825.29,0.00021984,2]
[356133807,1741936958430,-500.0,0.00021984,2]
[356133808,1741936958445,-500.0,0.00021984,2]
[356133809,1741936958457,-500.0,0.00021984,2]
[356133810,1741936958468,-500.0,0.00021984,2]
[356133811,1741936958480,-500.0,0.00021984,2]
[356133812,1741936958495,-500.0,0.00021917,3]
[356133813,1741936958506,-500.0,0.00021984,2]
[356133814,1741936958518,-500.0,0.00021984,2]
[356133815,1741936958533,-35.0803841,0.00021984,2]
[356133816,1741936958544,-236.4133728,0.00022136,3]
[356133817,1741936958553,-228.5062431,0.00022136,3]
[356133818,1741936958569,-732.3437569,0.00022136,3]
[356133819,1741936958579,-500.0,0.00022136,3]
[356133820,1741936958588,-218.0362431,0.00022136,3]
[356133821,1741936958600,-960.85,0.00022136,3]
[356133822,1741936958612,-500.0,0.00022136,3]
[356133823,1741936958624,-500.0,0.00022136,3]
[356133824,1741936958809,-145.2537569,0.00022136,3]
[356133825,1741936958819,-571.92116177,0.00022136,3]
[356133826,1741936958829,-500.0,0.00022136,3]
[356133827,1741936958840,-910.74,0.00022136,3]
[356133828,1741936958849,-196.22508133,0.00022136,3]
[356133829,1741936958862,-405.50491867,0.00022136,3]
[356133830,1741936958871,-94.49508133,0.00022136,3]